[Event "Late-Titled-Tuesday-Blitz-April-30-2024"]
[Site "Chess.com"]
[Date "2024.04.30"]
[Round "10"]
[White "yuki_chess123"]
[Black "Shiner22"]
[Result "0-1"]
[WhiteElo "2112"]
[BlackElo "2284"]
[TimeControl "180+1"]
[EndTime "15:55:06 PDT"]
[Termination "Shiner22 won by resignation"]

1. e4 {[%clk 0:02:55.3]} 1... c5 {[%clk 0:02:58.4]} 2. Nf3 {[%clk 0:02:54.9]}
2... Nc6 {[%clk 0:02:56.9]} 3. Bb5 {[%clk 0:02:55.4]} 3... g5 {[%clk 0:02:56.6]}
4. Bxc6 {[%clk 0:02:46.2]} 4... dxc6 {[%clk 0:02:53.7]} 5. Nxg5 {[%clk
0:02:46.3]} 5... Nf6 {[%clk 0:02:53.3]} 6. d3 {[%clk 0:02:44.4]} 6... Rg8 {[%clk
0:02:50.3]} 7. Kf1 {[%clk 0:02:24.2]} 7... c4 {[%clk 0:02:47]} 8. Nc3 {[%clk
0:02:22.5]} 8... Bg4 {[%clk 0:02:25.6]} 9. Nf3 {[%clk 0:02:12.8]} 9... e5 {[%clk
0:01:48.5]} 10. h3 {[%clk 0:02:06.4]} 10... Bh5 {[%clk 0:01:31.1]} 11. g4 {[%clk
0:02:04.2]} 11... Bg6 {[%clk 0:01:26.2]} 12. Nxe5 {[%clk 0:02:00.1]} 12... Bc5
{[%clk 0:01:14.8]} 13. Be3 {[%clk 0:01:34.2]} 13... Bxe3 {[%clk 0:01:12.1]} 14.
fxe3 {[%clk 0:01:34.1]} 14... cxd3 {[%clk 0:01:04.9]} 15. cxd3 {[%clk
0:01:31.5]} 15... Qb6 {[%clk 0:01:03.9]} 16. Nc4 {[%clk 0:01:22.5]} 16... Qc7
{[%clk 0:01:01.1]} 17. Qf3 {[%clk 0:01:19.2]} 17... Nd7 {[%clk 0:01:00.2]} 18.
Qf4 {[%clk 0:01:16.7]} 18... O-O-O {[%clk 0:00:59.2]} 19. Ke2 {[%clk 0:01:05.7]}
19... Nc5 {[%clk 0:00:54.8]} 20. Qxc7+ {[%clk 0:01:00.9]} 20... Kxc7 {[%clk
0:00:53.9]} 21. Rad1 {[%clk 0:00:53.5]} 21... Rge8 {[%clk 0:00:51.6]} 22. e5
{[%clk 0:00:47.8]} 22... Bxd3+ {[%clk 0:00:48.4]} 23. Rxd3 {[%clk 0:00:47.2]}
23... Nxd3 {[%clk 0:00:47.9]} 24. Rf1 {[%clk 0:00:41.1]} 24... Nxe5 {[%clk
0:00:43]} 25. Nxe5 {[%clk 0:00:39.7]} 25... Rxe5 {[%clk 0:00:42.5]} 26. Rxf7+
{[%clk 0:00:40.3]} 26... Rd7 {[%clk 0:00:42.9]} 27. Rf6 {[%clk 0:00:39.1]} 27...
Rde7 {[%clk 0:00:41.3]} 28. e4 {[%clk 0:00:38.8]} 28... R5e6 {[%clk 0:00:39.8]}
29. Rf5 {[%clk 0:00:38.5]} 29... Rh6 {[%clk 0:00:38.6]} 30. Rf3 {[%clk
0:00:33.9]} 30... b5 {[%clk 0:00:38.7]} 31. a3 {[%clk 0:00:29.9]} 31... a5
{[%clk 0:00:38]} 32. Re3 {[%clk 0:00:29.8]} 32... Rhe6 {[%clk 0:00:35.2]} 33.
Kd3 {[%clk 0:00:27.7]} 33... Rd7+ {[%clk 0:00:34.4]} 34. Kc2 {[%clk 0:00:25.3]}
34... Rd4 {[%clk 0:00:27.2]} 35. e5 {[%clk 0:00:18.8]} 35... Kb6 {[%clk
0:00:13.9]} 36. b3 {[%clk 0:00:15.1]} 36... h5 {[%clk 0:00:09.2]} 37. gxh5
{[%clk 0:00:14.4]} 37... Rh4 {[%clk 0:00:08.9]} 38. a4 {[%clk 0:00:12.1]} 38...
b4 {[%clk 0:00:08.3]} 39. Ne2 {[%clk 0:00:12.4]} 39... Rxh5 {[%clk 0:00:07.8]}
40. Nd4 {[%clk 0:00:12.3]} 40... Rexe5 {[%clk 0:00:07.2]} 41. Rf3 {[%clk
0:00:12.4]} 41... Rd5 {[%clk 0:00:05.6]} 42. Ne6 {[%clk 0:00:10.6]} 42... Rhe5
{[%clk 0:00:04.4]} 43. Nf4 {[%clk 0:00:10.2]} 43... Rc5+ {[%clk 0:00:03.9]} 44.
Kd2 {[%clk 0:00:09.7]} 44... Rc3 {[%clk 0:00:02.8]} 45. Rxc3 {[%clk 0:00:08.9]}
45... bxc3+ {[%clk 0:00:03.1]} 46. Kxc3 {[%clk 0:00:09.8]} 46... Re3+ {[%clk
0:00:03.3]} 47. Kc4 {[%clk 0:00:10]} 47... Rf3 {[%clk 0:00:03.4]} 48. Nd3 {[%clk
0:00:10.1]} 48... Rxh3 {[%clk 0:00:03.4]} 49. b4 {[%clk 0:00:10]} 49... Rh4+
{[%clk 0:00:03.3]} 50. Kc3 {[%clk 0:00:10.2]} 50... Rh3 {[%clk 0:00:03.6]} 51.
bxa5+ {[%clk 0:00:09.1]} 51... Kxa5 {[%clk 0:00:04]} 52. Kc4 {[%clk 0:00:09.3]}
52... Kxa4 {[%clk 0:00:03.5]} 53. Nc5+ {[%clk 0:00:09.9]} 53... Ka5 {[%clk
0:00:03]} 54. Nb3+ {[%clk 0:00:10.6]} 54... Kb6 {[%clk 0:00:03.1]} 0-1

[Event "Late-Titled-Tuesday-Blitz-April-30-2024"]
[Site "Chess.com"]
[Date "2024.04.30"]
[Round "10"]
[White "Meri-Arabidze"]
[Black "Bykov_Egor"]
[Result "1-0"]
[WhiteElo "2704"]
[BlackElo "2606"]
[TimeControl "180+1"]
[EndTime "15:55:08 PDT"]
[Termination "Meri-Arabidze won by resignation"]

1. Nf3 {[%clk 0:03:00.9]} 1... Nf6 {[%clk 0:02:58.5]} 2. c4 {[%clk 0:03:01.5]}
2... g6 {[%clk 0:02:57.4]} 3. b3 {[%clk 0:03:01.9]} 3... Bg7 {[%clk 0:02:57.3]}
4. Bb2 {[%clk 0:03:02.7]} 4... d6 {[%clk 0:02:56.9]} 5. g3 {[%clk 0:03:03.2]}
5... O-O {[%clk 0:02:52.6]} 6. Bg2 {[%clk 0:03:03.3]} 6... e5 {[%clk 0:02:37.3]}
7. O-O {[%clk 0:03:02.8]} 7... Re8 {[%clk 0:02:26]} 8. d3 {[%clk 0:03:02.6]}
8... Nc6 {[%clk 0:02:20.6]} 9. a3 {[%clk 0:03:02.4]} 9... Bf5 {[%clk 0:02:12.9]}
10. b4 {[%clk 0:02:55.9]} 10... e4 {[%clk 0:02:06]} 11. dxe4 {[%clk 0:02:56.8]}
11... Bxe4 {[%clk 0:01:52.7]} 12. Nc3 {[%clk 0:02:54.2]} 12... Nd7 {[%clk
0:01:37.6]} 13. Ra2 {[%clk 0:02:42.5]} 13... Bf5 {[%clk 0:01:26.8]} 14. Nd5
{[%clk 0:02:37.3]} 14... Nde5 {[%clk 0:01:25.1]} 15. Nxe5 {[%clk 0:02:27]} 15...
Nxe5 {[%clk 0:01:25.1]} 16. Ne3 {[%clk 0:02:23.4]} 16... Be6 {[%clk 0:01:23.5]}
17. Bxb7 {[%clk 0:02:17.7]} 17... Nxc4 {[%clk 0:01:10.8]} 18. Nxc4 {[%clk
0:02:14.6]} 18... Bxc4 {[%clk 0:01:11.7]} 19. Bxg7 {[%clk 0:02:12.3]} 19... Rb8
{[%clk 0:00:37.5]} 20. Bc6 {[%clk 0:01:24.6]} 20... Bxa2 {[%clk 0:00:29.8]} 21.
Bxe8 {[%clk 0:01:23.2]} 21... Kxg7 {[%clk 0:00:26.9]} 22. Qa1+ {[%clk
0:01:08.7]} 22... Qf6 {[%clk 0:00:26.4]} 23. Qxa2 {[%clk 0:01:09.3]} 23... Rxe8
{[%clk 0:00:25.8]} 24. Rc1 {[%clk 0:01:09.2]} 24... Re7 {[%clk 0:00:22.3]} 25.
e3 {[%clk 0:01:07.7]} 25... h5 {[%clk 0:00:22.5]} 26. Qc4 {[%clk 0:01:06.6]}
26... g5 {[%clk 0:00:17.2]} 27. Qc3 {[%clk 0:00:39.3]} 27... Qxc3 {[%clk
0:00:15]} 28. Rxc3 {[%clk 0:00:40.2]} 28... Kf6 {[%clk 0:00:15.3]} 29. Rc6
{[%clk 0:00:39.1]} 29... Ke5 {[%clk 0:00:13.2]} 30. Kf1 {[%clk 0:00:30.3]} 30...
Kd5 {[%clk 0:00:13]} 31. Ra6 {[%clk 0:00:30.3]} 31... c5 {[%clk 0:00:12.3]} 32.
Ke2 {[%clk 0:00:30.5]} 32... Rb7 {[%clk 0:00:08.4]} 33. Ra5 {[%clk 0:00:24.1]}
33... Kc4 {[%clk 0:00:05.8]} 34. bxc5 {[%clk 0:00:23.8]} 34... dxc5 {[%clk
0:00:06.7]} 35. h4 {[%clk 0:00:21.7]} 35... gxh4 {[%clk 0:00:05.7]} 36. gxh4
{[%clk 0:00:22.1]} 36... Rc7 {[%clk 0:00:04.8]} 37. Ra6 {[%clk 0:00:12.2]} 37...
Kb3 {[%clk 0:00:05.4]} 38. Kd2 {[%clk 0:00:09.6]} 38... Kb2 {[%clk 0:00:03.9]}
39. Ra5 {[%clk 0:00:03]} 39... c4 {[%clk 0:00:03.3]} 40. Rb5+ {[%clk 0:00:03.3]}
40... Kxa3 {[%clk 0:00:03.9]} 41. Kc3 {[%clk 0:00:03.7]} 41... Ka4 {[%clk
0:00:04.6]} 42. Rxh5 {[%clk 0:00:03.7]} 42... a5 {[%clk 0:00:04.6]} 43. Rd5
{[%clk 0:00:03.5]} 43... f6 {[%clk 0:00:04.2]} 44. h5 {[%clk 0:00:03.9]} 44...
Rh7 {[%clk 0:00:04.7]} 45. Kxc4 {[%clk 0:00:03.7]} 45... Ka3 {[%clk 0:00:03.3]}
46. Rxa5+ {[%clk 0:00:03.4]} 46... Kb2 {[%clk 0:00:04.2]} 47. Rf5 {[%clk
0:00:03.7]} 47... Kc2 {[%clk 0:00:05.1]} 48. Kd4 {[%clk 0:00:04]} 48... Kd2
{[%clk 0:00:05.7]} 49. Kd5 {[%clk 0:00:04.4]} 49... Ke2 {[%clk 0:00:06.6]} 50.
Ke6 {[%clk 0:00:04.8]} 50... Rh6 {[%clk 0:00:06.7]} 51. Kf7 {[%clk 0:00:03.6]}
51... Kf1 {[%clk 0:00:06.2]} 52. Kg7 {[%clk 0:00:03.8]} 1-0

[Event "Late-Titled-Tuesday-Blitz-April-30-2024"]
[Site "Chess.com"]
[Date "2024.04.30"]
[Round "10"]
[White "carloseduar100"]
[Black "georgpapi"]
[Result "1-0"]
[WhiteElo "2252"]
[BlackElo "2367"]
[TimeControl "180+1"]
[EndTime "15:55:08 PDT"]
[Termination "carloseduar100 won on time"]

1. d4 {[%clk 0:02:59.6]} 1... Nf6 {[%clk 0:02:56.6]} 2. Bg5 {[%clk 0:02:54.5]}
2... g6 {[%clk 0:02:57.5]} 3. Bxf6 {[%clk 0:02:53.7]} 3... exf6 {[%clk
0:02:57.9]} 4. g3 {[%clk 0:02:54.6]} 4... d5 {[%clk 0:02:57.6]} 5. Bg2 {[%clk
0:02:55.5]} 5... Bd6 {[%clk 0:02:57.8]} 6. Nd2 {[%clk 0:02:56.4]} 6... c6 {[%clk
0:02:57.7]} 7. e3 {[%clk 0:02:57.3]} 7... O-O {[%clk 0:02:57.6]} 8. Ne2 {[%clk
0:02:58.1]} 8... f5 {[%clk 0:02:57.8]} 9. O-O {[%clk 0:02:59]} 9... Nd7 {[%clk
0:02:57.9]} 10. b3 {[%clk 0:02:59.5]} 10... Nf6 {[%clk 0:02:58.2]} 11. c4 {[%clk
0:03:00.1]} 11... dxc4 {[%clk 0:02:57.8]} 12. bxc4 {[%clk 0:03:00.2]} 12... Kg7
{[%clk 0:02:57.9]} 13. a4 {[%clk 0:03:00.6]} 13... Re8 {[%clk 0:02:57.3]} 14. a5
{[%clk 0:03:00.9]} 14... Ne4 {[%clk 0:02:52.7]} 15. c5 {[%clk 0:02:55.7]} 15...
Bc7 {[%clk 0:02:50.9]} 16. a6 {[%clk 0:02:56.3]} 16... bxa6 {[%clk 0:02:48.8]}
17. Nc4 {[%clk 0:02:56.4]} 17... a5 {[%clk 0:02:45.4]} 18. Qa4 {[%clk
0:02:56.3]} 18... Ba6 {[%clk 0:02:44.2]} 19. Rfc1 {[%clk 0:02:36.5]} 19... Bb5
{[%clk 0:02:38.8]} 20. Qa2 {[%clk 0:02:36.6]} 20... a4 {[%clk 0:02:37.2]} 21.
Na3 {[%clk 0:02:13.4]} 21... a6 {[%clk 0:02:27.8]} 22. Nc3 {[%clk 0:02:13.5]}
22... Qe7 {[%clk 0:02:21]} 23. d5 {[%clk 0:02:01]} 23... Nxc3 {[%clk 0:02:02.4]}
24. Rxc3 {[%clk 0:02:01.9]} 24... Be5 {[%clk 0:02:02.9]} 25. d6 {[%clk
0:01:45.9]} 25... Qf6 {[%clk 0:01:58.9]} 26. Rcc1 {[%clk 0:01:42.7]} 26... Bxa1
{[%clk 0:01:56.6]} 27. Rxa1 {[%clk 0:01:43.6]} 27... Rec8 {[%clk 0:01:07.8]} 28.
Rb1 {[%clk 0:01:42.6]} 28... Qc3 {[%clk 0:01:05.2]} 29. h4 {[%clk 0:01:32.4]}
29... Qxc5 {[%clk 0:01:02.7]} 30. d7 {[%clk 0:01:31.2]} 30... Rd8 {[%clk
0:01:01.7]} 31. Qb2+ {[%clk 0:01:31.3]} 31... Kg8 {[%clk 0:01:00.9]} 32. Rc1
{[%clk 0:01:24.3]} 32... Qd6 {[%clk 0:00:44.6]} 33. Nxb5 {[%clk 0:01:23.7]}
33... axb5 {[%clk 0:00:45.4]} 34. Bxc6 {[%clk 0:01:22.9]} 34... Rab8 {[%clk
0:00:45.8]} 35. Qc2 {[%clk 0:00:59.8]} 35... a3 {[%clk 0:00:36.9]} 36. Rd1
{[%clk 0:00:59.5]} 36... Qe7 {[%clk 0:00:35.1]} 37. Qb3 {[%clk 0:00:57.2]} 37...
b4 {[%clk 0:00:32]} 38. Ba4 {[%clk 0:00:54.6]} 38... Rb7 {[%clk 0:00:25.4]} 39.
Rd4 {[%clk 0:00:51.6]} 39... Qc5 {[%clk 0:00:15]} 40. Kg2 {[%clk 0:00:38.7]}
40... Qc3 {[%clk 0:00:12.9]} 41. Qd5 {[%clk 0:00:33.9]} 41... a2 {[%clk
0:00:08.7]} 42. Qxa2 {[%clk 0:00:31.2]} 42... b3 {[%clk 0:00:08.5]} 43. Qa3
{[%clk 0:00:25.3]} 43... Kg7 {[%clk 0:00:03.3]} 44. Qe7 {[%clk 0:00:18.9]} 44...
b2 {[%clk 0:00:02]} 45. Qxd8 {[%clk 0:00:15.2]} 45... b1=Q {[%clk 0:00:02]} 46.
Qe7 {[%clk 0:00:13.6]} 46... Qbc1 {[%clk 0:00:00.6]} 47. Qe5+ {[%clk 0:00:13.2]}
47... Kh6 {[%clk 0:00:00.8]} 48. Qf4+ {[%clk 0:00:12.4]} 48... Kg7 {[%clk
0:00:01.2]} 49. Qe5+ {[%clk 0:00:12.6]} 49... Kh6 {[%clk 0:00:01.5]} 50. d8=Q
{[%clk 0:00:09.3]} 50... Qc6+ {[%clk 0:00:00.7]} 51. e4 {[%clk 0:00:08.3]} 1-0

[Event "Late-Titled-Tuesday-Blitz-April-30-2024"]
[Site "Chess.com"]
[Date "2024.04.30"]
[Round "10"]
[White "Sergey_70"]
[Black "Shuvalov"]
[Result "1-0"]
[WhiteElo "2520"]
[BlackElo "2606"]
[TimeControl "180+1"]
[EndTime "15:55:14 PDT"]
[Termination "Sergey_70 won by resignation"]

1. e4 {[%clk 0:03:00.9]} 1... e6 {[%clk 0:02:58.5]} 2. d4 {[%clk 0:02:59.8]}
2... d5 {[%clk 0:02:58.7]} 3. Nc3 {[%clk 0:03:00]} 3... Bb4 {[%clk 0:02:58.1]}
4. Ne2 {[%clk 0:02:58.8]} 4... Nc6 {[%clk 0:02:57.9]} 5. exd5 {[%clk 0:02:54.5]}
5... exd5 {[%clk 0:02:57.7]} 6. a3 {[%clk 0:02:54.8]} 6... Be7 {[%clk
0:02:56.2]} 7. g3 {[%clk 0:02:52]} 7... Bf6 {[%clk 0:02:48.7]} 8. Bg2 {[%clk
0:02:50.9]} 8... Nge7 {[%clk 0:02:49.3]} 9. O-O {[%clk 0:02:48.7]} 9... O-O
{[%clk 0:02:48.3]} 10. b4 {[%clk 0:02:37.1]} 10... Bg4 {[%clk 0:02:43]} 11. h3
{[%clk 0:02:33.7]} 11... Bxe2 {[%clk 0:02:31.6]} 12. Nxe2 {[%clk 0:02:33.1]}
12... Nf5 {[%clk 0:02:29.9]} 13. c3 {[%clk 0:02:28.7]} 13... Nce7 {[%clk
0:02:30]} 14. g4 {[%clk 0:02:24.5]} 14... Nh4 {[%clk 0:02:24]} 15. g5 {[%clk
0:02:24]} 15... Nef5 {[%clk 0:02:21.3]} 16. gxf6 {[%clk 0:02:21.2]} 16... Nxg2
{[%clk 0:02:21.3]} 17. Kxg2 {[%clk 0:02:17.1]} 17... Nh4+ {[%clk 0:02:17.7]} 18.
Kh1 {[%clk 0:02:13.5]} 18... Qxf6 {[%clk 0:02:05.3]} 19. Ng3 {[%clk 0:02:08.4]}
19... g6 {[%clk 0:02:02.3]} 20. Qg4 {[%clk 0:02:00.1]} 20... Qf3+ {[%clk
0:01:45.7]} 21. Qxf3 {[%clk 0:01:59.3]} 21... Nxf3 {[%clk 0:01:46.6]} 22. Bf4
{[%clk 0:01:48.8]} 22... c6 {[%clk 0:01:45.8]} 23. Rfd1 {[%clk 0:01:28.6]} 23...
Rfe8 {[%clk 0:01:45]} 24. Rd3 {[%clk 0:01:25.3]} 24... Ne1 {[%clk 0:01:27.7]}
25. Re3 {[%clk 0:01:13.1]} 25... Nc2 {[%clk 0:01:27.6]} 26. Rxe8+ {[%clk
0:01:12.9]} 26... Rxe8 {[%clk 0:01:28.5]} 27. Ra2 {[%clk 0:01:08.4]} 27... Ne1
{[%clk 0:01:05.7]} 28. Re2 {[%clk 0:01:06.5]} 28... Rxe2 {[%clk 0:01:05.3]} 29.
Nxe2 {[%clk 0:01:06.8]} 29... Nd3 {[%clk 0:01:00.6]} 30. Kg2 {[%clk 0:01:00.8]}
30... f6 {[%clk 0:00:59.9]} 31. Bd2 {[%clk 0:00:57.1]} 31... Kf7 {[%clk
0:00:57.8]} 32. a4 {[%clk 0:00:52.1]} 32... b6 {[%clk 0:00:51.5]} 33. a5 {[%clk
0:00:48.7]} 33... bxa5 {[%clk 0:00:49.1]} 34. bxa5 {[%clk 0:00:49.6]} 34... a6
{[%clk 0:00:49.8]} 35. Kf3 {[%clk 0:00:43.5]} 35... Nb2 {[%clk 0:00:49.2]} 36.
Bf4 {[%clk 0:00:40.9]} 36... Nc4 {[%clk 0:00:45.4]} 37. Bc7 {[%clk 0:00:40.6]}
37... g5 {[%clk 0:00:44.2]} 38. Nc1 {[%clk 0:00:34.5]} 38... h5 {[%clk
0:00:34.8]} 39. Nd3 {[%clk 0:00:32.8]} 39... Nd2+ {[%clk 0:00:29.1]} 40. Kg2
{[%clk 0:00:26.9]} 40... Nb1 {[%clk 0:00:27.3]} 41. Nc5 {[%clk 0:00:26.4]} 41...
Nxc3 {[%clk 0:00:27.6]} 42. Nxa6 {[%clk 0:00:26.6]} 42... Nb5 {[%clk 0:00:25.9]}
43. Bb6 {[%clk 0:00:26.5]} 43... Ke6 {[%clk 0:00:24.9]} 44. Nb4 {[%clk
0:00:20.6]} 44... Kd7 {[%clk 0:00:20.6]} 45. a6 {[%clk 0:00:20.9]} 45... Kc8
{[%clk 0:00:20.2]} 46. h4 {[%clk 0:00:19.7]} 46... gxh4 {[%clk 0:00:16.2]} 47.
Nxc6 {[%clk 0:00:19.3]} 47... Nc3 {[%clk 0:00:14.9]} 48. Kh3 {[%clk 0:00:14.6]}
48... Ne4 {[%clk 0:00:14.4]} 49. Kxh4 {[%clk 0:00:14.2]} 49... Nxf2 {[%clk
0:00:14.5]} 50. Kxh5 {[%clk 0:00:14.6]} 50... Nd1 {[%clk 0:00:12.6]} 51. Kg6
{[%clk 0:00:14.1]} 51... Ne3 {[%clk 0:00:12.7]} 52. Kxf6 {[%clk 0:00:13.9]}
52... Nc2 {[%clk 0:00:13.2]} 53. Ke6 {[%clk 0:00:13.8]} 53... Nxd4+ {[%clk
0:00:12.5]} 54. Nxd4 {[%clk 0:00:12.8]} 54... Kb8 {[%clk 0:00:13.4]} 55. Kxd5
{[%clk 0:00:13]} 55... Ka8 {[%clk 0:00:14.3]} 56. Kc6 {[%clk 0:00:13]} 56... Kb8
{[%clk 0:00:14.7]} 57. Nb3 {[%clk 0:00:12.3]} 57... Ka8 {[%clk 0:00:15.6]} 58.
Nc5 {[%clk 0:00:11.4]} 58... Kb8 {[%clk 0:00:16.5]} 59. Kb5 {[%clk 0:00:10.5]}
59... Ka8 {[%clk 0:00:17.4]} 60. Ba5 {[%clk 0:00:10.5]} 60... Kb8 {[%clk
0:00:18.3]} 61. Kb6 {[%clk 0:00:10.6]} 61... Ka8 {[%clk 0:00:18.6]} 62. Ne6
{[%clk 0:00:10.6]} 62... Kb8 {[%clk 0:00:18.8]} 63. a7+ {[%clk 0:00:10.9]} 63...
Kc8 {[%clk 0:00:18.6]} 64. a8=Q+ {[%clk 0:00:11.2]} 64... Kd7 {[%clk 0:00:19.5]}
65. Qc6+ {[%clk 0:00:10.3]} 1-0

[Event "Late-Titled-Tuesday-Blitz-April-30-2024"]
[Site "Chess.com"]
[Date "2024.04.30"]
[Round "10"]
[White "GMKrikor"]
[Black "Sanyura"]
[Result "0-1"]
[WhiteElo "2869"]
[BlackElo "2672"]
[TimeControl "180+1"]
[EndTime "15:55:27 PDT"]
[Termination "Sanyura won on time"]

1. Nf3 {[%clk 0:03:00.9]} 1... Nf6 {[%clk 0:02:59.7]} 2. c4 {[%clk 0:03:01.1]}
2... g6 {[%clk 0:03:00]} 3. Nc3 {[%clk 0:03:01.4]} 3... Bg7 {[%clk 0:03:00.4]}
4. e4 {[%clk 0:03:01.8]} 4... d6 {[%clk 0:03:01]} 5. d4 {[%clk 0:03:02.3]} 5...
O-O {[%clk 0:03:01.5]} 6. h3 {[%clk 0:03:02.9]} 6... Na6 {[%clk 0:03:00.9]} 7.
Bg5 {[%clk 0:03:02.2]} 7... c5 {[%clk 0:03:01]} 8. d5 {[%clk 0:02:59.5]} 8... e6
{[%clk 0:03:01.4]} 9. Be2 {[%clk 0:02:55.4]} 9... exd5 {[%clk 0:03:01.1]} 10.
exd5 {[%clk 0:02:55.6]} 10... Re8 {[%clk 0:02:59.1]} 11. O-O {[%clk 0:02:52.3]}
11... h6 {[%clk 0:02:59.1]} 12. Bh4 {[%clk 0:02:48.6]} 12... g5 {[%clk
0:02:50.8]} 13. Bg3 {[%clk 0:02:48.7]} 13... Ne4 {[%clk 0:02:50.6]} 14. Nxe4
{[%clk 0:02:49.1]} 14... Rxe4 {[%clk 0:02:51.2]} 15. Bd3 {[%clk 0:02:49.8]}
15... Re8 {[%clk 0:02:50.9]} 16. a3 {[%clk 0:02:19.4]} 16... Bxb2 {[%clk
0:02:47]} 17. Rb1 {[%clk 0:02:17.9]} 17... Bg7 {[%clk 0:02:45.2]} 18. Qc2 {[%clk
0:02:17.6]} 18... Qf6 {[%clk 0:02:42.6]} 19. Nd2 {[%clk 0:02:14.2]} 19... Qc3
{[%clk 0:01:22.5]} 20. Qxc3 {[%clk 0:01:51.3]} 20... Bxc3 {[%clk 0:01:21.8]} 21.
Ne4 {[%clk 0:01:52]} 21... Bf5 {[%clk 0:01:20.4]} 22. f3 {[%clk 0:01:13]} 22...
Bxe4 {[%clk 0:01:16.9]} 23. fxe4 {[%clk 0:01:13.9]} 23... b6 {[%clk 0:01:01.4]}
24. Bxd6 {[%clk 0:01:13.5]} 24... Rad8 {[%clk 0:00:52.8]} 25. Bg3 {[%clk
0:01:08.8]} 25... Bd4+ {[%clk 0:00:49.3]} 26. Kh1 {[%clk 0:01:00]} 26... Kg7
{[%clk 0:00:49.1]} 27. Rf5 {[%clk 0:00:55.3]} 27... f6 {[%clk 0:00:30.7]} 28.
Rbf1 {[%clk 0:00:52.9]} 28... Rf8 {[%clk 0:00:20.4]} 29. Bc2 {[%clk 0:00:46.7]}
29... Nb8 {[%clk 0:00:20]} 30. Ba4 {[%clk 0:00:46.8]} 30... Rf7 {[%clk
0:00:15.7]} 31. e5 {[%clk 0:00:42.2]} 31... a6 {[%clk 0:00:05.4]} 32. e6 {[%clk
0:00:26.1]} 32... Re7 {[%clk 0:00:05.3]} 33. Bf2 {[%clk 0:00:21.5]} 33... Bxf2
{[%clk 0:00:04.1]} 34. R1xf2 {[%clk 0:00:22.4]} 34... b5 {[%clk 0:00:02.5]} 35.
cxb5 {[%clk 0:00:19.1]} 35... Rd6 {[%clk 0:00:02.8]} 36. Kh2 {[%clk 0:00:10.6]}
36... c4 {[%clk 0:00:02.3]} 37. Kg3 {[%clk 0:00:09.3]} 37... h5 {[%clk
0:00:02.3]} 38. Rc2 {[%clk 0:00:08.3]} 38... Kg6 {[%clk 0:00:02.3]} 39. Rf3
{[%clk 0:00:06]} 39... Rxd5 {[%clk 0:00:02.5]} 40. bxa6 {[%clk 0:00:06.6]} 40...
Nxa6 {[%clk 0:00:02.6]} 41. Rxc4 {[%clk 0:00:07]} 41... Rxe6 {[%clk 0:00:03]}
42. Bb3 {[%clk 0:00:06.5]} 42... Rde5 {[%clk 0:00:02.3]} 43. Rcc3 {[%clk
0:00:04.3]} 43... Rb6 {[%clk 0:00:02.7]} 44. Bc4 {[%clk 0:00:03.9]} 44... Nc5
{[%clk 0:00:03.2]} 45. Kh2 {[%clk 0:00:03.6]} 45... Ne4 {[%clk 0:00:02.9]} 46.
Rce3 {[%clk 0:00:04.3]} 46... Nd6 {[%clk 0:00:02.5]} 47. Bd3+ {[%clk 0:00:04.3]}
47... Kg7 {[%clk 0:00:02.3]} 48. Rxe5 {[%clk 0:00:02.9]} 48... fxe5 {[%clk
0:00:03.2]} 49. Rg3 {[%clk 0:00:02.9]} 49... Kf6 {[%clk 0:00:03.3]} 50. Rf3+
{[%clk 0:00:03.5]} 50... Ke6 {[%clk 0:00:03.9]} 51. Bg6 {[%clk 0:00:03.4]} 51...
g4 {[%clk 0:00:03.3]} 52. Rf1 {[%clk 0:00:02.6]} 52... gxh3 {[%clk 0:00:02.9]}
53. Kxh3 {[%clk 0:00:03.4]} 53... Rb3+ {[%clk 0:00:02.8]} 54. Kh4 {[%clk
0:00:04]} 54... Rxa3 {[%clk 0:00:03.1]} 55. Bxh5 {[%clk 0:00:04.3]} 55... e4
{[%clk 0:00:03]} 56. g4 {[%clk 0:00:03.9]} 56... Ke5 {[%clk 0:00:03.5]} 57. g5
{[%clk 0:00:04.4]} 57... Nf5+ {[%clk 0:00:03.8]} 58. Rxf5+ {[%clk 0:00:01.3]}
58... Kxf5 {[%clk 0:00:04.5]} 59. Bg4+ {[%clk 0:00:01.8]} 59... Kf4 {[%clk
0:00:04.9]} 60. g6 {[%clk 0:00:01.9]} 60... Ra1 {[%clk 0:00:03.6]} 61. g7 {[%clk
0:00:01.6]} 61... Rh1+ {[%clk 0:00:03.9]} 62. Bh3 {[%clk 0:00:02.2]} 62... Rg1
{[%clk 0:00:04.6]} 0-1